bitfinex/quotes_BTCUSD_20250313
["timestamp","ask_amount","ask_price","bid_price","bid_amount"]
[1741833869478,0.39254334,84176.0,84175.0,0.00033952]
[1741833869631,0.39654334,84176.0,84175.0,0.00033952]
[1741833870037,0.39554334,84176.0,84175.0,0.00033952]
[1741833895997,0.39254334,84176.0,84175.0,0.00033952]
[1741833896400,0.39554334,84176.0,84175.0,0.00033952]
[1741833896744,0.39654334,84176.0,84175.0,0.00033952]
[1741833897458,0.47334334,84176.0,84150.0,0.000339]
[1741833897664,0.399991,84171.0,84170.0,3.2e-07]
[1741833897866,0.536951,84171.0,84170.0,3.2e-07]
[1741833899096,0.539951,84171.0,84170.0,3.2e-07]
[1741833900663,0.58357167,84171.0,84170.0,3.2e-07]
[1741833901445,1.80025136,84171.0,84170.0,3.2e-07]
[1741833902334,1.92890073,84171.0,84170.0,3.2e-07]
[1741833903219,1.96233224,84171.0,84170.0,3.2e-07]
[1741833903856,1.91871157,84171.0,84170.0,3.2e-07]
[1741833904104,2.01053054,84171.0,84170.0,3.2e-07]
[1741833904832,2.01353054,84171.0,84170.0,3.2e-07]
[1741833905037,2.01053054,84171.0,84170.0,3.2e-07]
[1741833905338,2.01553054,84171.0,84170.0,3.2e-07]
[1741833905748,2.01053054,84171.0,84170.0,3.2e-07]
[1741833905957,0.250551,84151.0,84150.0,0.000339]
[1741833906165,0.37383069,84151.0,84150.0,0.00046396]
[1741833906787,0.52125399,84151.0,84150.0,0.00046396]
[1741833906985,0.54625399,84151.0,84150.0,9.6e-07]
[1741833907407,0.57125594,84151.0,84150.0,9.6e-07]
[1741833907815,0.59531695,84151.0,84150.0,9.6e-07]
[1741833908019,0.59331695,84151.0,84150.0,9.6e-07]
[1741833908854,0.41445594,84151.0,84150.0,9.6e-07]
[1741833909045,0.15703183,84151.0,84150.0,9.6e-07]
[1741833909254,0.15403183,84151.0,84150.0,9.6e-07]
[1741833909608,0.17691483,84151.0,84150.0,9.6e-07]
[1741833909807,0.16991483,84151.0,84150.0,9.6e-07]
[1741833910003,0.16591483,84151.0,84150.0,9.6e-07]
[1741833910212,0.16103183,84151.0,84150.0,9.6e-07]
[1741833910412,0.16203183,84151.0,84150.0,9.6e-07]
[1741833910613,0.16278599,84151.0,84150.0,9.6e-07]
[1741833911013,0.15090299,84151.0,84150.0,0.24955396]
[1741833911225,0.14290299,84151.0,84150.0,9.6e-07]
[1741833911555,0.15478599,84151.0,84150.0,9.6e-07]
[1741833912132,0.15478599,84151.0,84150.0,0.00034016]
[1741833912719,0.15478599,84151.0,84150.0,0.00928851]
[1741833912924,0.15478599,84151.0,84150.0,0.00034016]
[1741833913126,0.14690299,84151.0,84150.0,0.01222316]
[1741833913333,0.14290299,84151.0,84150.0,0.01222316]
[1741833913776,0.15501387,84151.0,84150.0,0.01222316]
[1741833914005,0.01311088,84151.0,84150.0,0.40683603]
[1741833914416,0.12327969,84159.0,84158.0,0.32883]
[1741833914749,0.12327969,84159.0,84158.0,0.49817219]
[1741833915930,0.08754343,84159.0,84158.0,0.49817219]
[1741833916139,0.08754343,84159.0,84158.0,0.49717219]
[1741833916314,0.05180717,84159.0,84158.0,0.49617219]
[1741833916718,0.0001696,84171.0,84170.0,0.324994]
[1741833916919,0.0001696,84171.0,84170.0,0.460954]
[1741833917571,0.0001696,84171.0,84170.0,0.58089619]
[1741833917798,0.0001696,84171.0,84170.0,0.62829619]
[1741833918190,0.0001696,84171.0,84170.0,0.63029619]
[1741833918611,0.0011696,84171.0,84170.0,0.63029619]
[1741833918813,0.0011696,84171.0,84170.0,2.13029619]
[1741833919457,0.0011696,84171.0,84170.0,2.1523038]
[1741833919965,0.0001696,84171.0,84170.0,2.1563038]
[1741833920147,1.26e-05,84171.0,84170.0,2.1523038]
[1741833920347,0.0020126,84171.0,84170.0,2.1593038]
[1741833920757,0.0010126,84171.0,84170.0,2.1593038]
[1741833921280,0.0020126,84171.0,84170.0,2.1593038]
[1741833921622,0.0020126,84171.0,84170.0,0.6593038]
[1741833922365,0.0020126,84171.0,84170.0,2.1593038]
[1741833925296,0.0020126,84171.0,84170.0,0.6593038]
[1741833925891,0.0020126,84171.0,84170.0,2.1593038]
[1741833926089,1e-08,84171.0,84170.0,2.1593038]
[1741833926826,0.0001694,84176.0,84175.0,0.24948]
[1741833926999,0.0001694,84176.0,84175.0,0.36942219]
[1741833927201,0.0001694,84176.0,84175.0,0.36842219]
[1741833927438,0.0001694,84176.0,84175.0,0.36742219]
[1741833927881,0.01607091,84198.0,84197.0,0.249414]
[1741833928078,0.01607091,84198.0,84197.0,0.137]
[1741833928079,0.01707091,84198.0,84197.0,0.137]
[1741833928277,0.01707091,84198.0,84197.0,0.136]
[1741833929132,0.02894691,84198.0,84197.0,0.136]
[1741833929336,0.02907178,84198.0,84197.0,0.136]
[1741833929537,0.01719578,84198.0,84197.0,0.136]
[1741833929740,0.01719578,84198.0,84197.0,0.138]
[1741833929947,0.01719578,84198.0,84197.0,0.145]
[1741833930155,0.01719578,84198.0,84197.0,0.15686031]
[1741833930335,0.01719578,84198.0,84197.0,0.14986031]
[1741833930760,0.02907178,84198.0,84197.0,0.15286031]
[1741833931384,0.02907178,84198.0,84197.0,0.14986031]
[1741833931534,0.02907178,84198.0,84197.0,0.15386031]
[1741833932174,0.02907178,84198.0,84197.0,0.01786031]
[1741833932523,0.01719578,84198.0,84197.0,0.02687709]
[1741833932738,0.01719578,84198.0,84197.0,0.006]
[1741833932959,0.01719578,84198.0,84197.0,0.004]
[1741833933562,0.02907178,84198.0,84197.0,0.01572432]
[1741833934400,0.01719578,84198.0,84197.0,0.01572432]
[1741833935666,0.02907178,84198.0,84197.0,0.01572432]
[1741833937274,0.02907178,84198.0,84197.0,0.02477525]
[1741833937572,0.02907178,84198.0,84197.0,0.02511425]
[1741833937785,0.02924128,84198.0,84197.0,0.02511425]
[1741833938685,0.04785128,84198.0,84197.0,0.02511425]
[1741833940112,0.04785128,84198.0,84197.0,0.01606332]
[1741833942524,0.12295128,84198.0,84197.0,0.004339]
[1741833942886,0.10434128,84198.0,84197.0,0.004339]
[1741833943400,0.10434128,84198.0,84197.0,0.000339]
[1741833943713,0.10434128,84198.0,84197.0,0.004339]
[1741833945670,0.12295289,84198.0,84197.0,0.004339]
[1741833955888,0.16945289,84198.0,84197.0,0.004339]
[1741833956742,0.16945289,84198.0,84197.0,0.000339]
[1741833957158,0.17145289,84198.0,84197.0,0.000339]
[1741833957960,0.15284128,84198.0,84197.0,0.000339]
[1741833958818,0.250494,84170.0,84169.0,0.75424]
[1741833959000,0.250527,84159.0,84158.0,0.1372592]
[1741833959207,0.001,84159.0,84158.0,0.1372592]
[1741833959350,0.001,84159.0,84158.0,0.1580828]
[1741833960503,0.012882,84159.0,84158.0,0.1580828]
[1741833960715,0.012882,84159.0,84158.0,0.1650828]
[1741833960925,0.012882,84159.0,84158.0,0.1580828]
[1741833961140,0.001,84159.0,84158.0,0.1580828]
[1741833961339,0.012882,84159.0,84158.0,0.1650828]
[1741833961568,0.001,84159.0,84158.0,0.1650828]
[1741833961977,0.001,84159.0,84158.0,0.1720828]
[1741833962308,0.01961775,84159.0,84158.0,0.1650828]
[1741833962740,0.01961775,84159.0,84158.0,0.0351628]
[1741833963500,0.01961775,84159.0,84158.0,0.24508699]
[1741833963501,0.01861775,84159.0,84158.0,0.24508699]
[1741833963700,0.01607091,84161.0,84159.0,0.237645]
[1741833964107,0.01707091,84161.0,84159.0,0.237645]
[1741833964819,0.01707091,84161.0,84159.0,0.244645]
[1741833964976,0.01707091,84161.0,84159.0,0.251645]
[1741833965192,0.01707091,84161.0,84160.0,0.02430918]
[1741833965374,0.01607091,84161.0,84160.0,0.11429118]
[1741833967181,0.01607091,84161.0,84160.0,0.12029118]
[1741833968953,0.01861643,84167.0,84166.0,0.237625]
[1741833969154,0.01874123,84167.0,84166.0,0.249506]
[1741833969356,0.01974123,84167.0,84166.0,0.00574518]
[1741833969552,0.01974123,84167.0,84166.0,0.14266518]
[1741833969751,0.01974123,84167.0,84166.0,0.13692]
[1741833969994,0.01974123,84167.0,84166.0,0.15454618]
[1741833970165,0.02074123,84167.0,84166.0,0.15366518]
[1741833975657,0.01974123,84167.0,84166.0,0.16554618]
[1741833976043,0.02074123,84167.0,84166.0,0.16554618]
[1741833976242,0.02074123,84167.0,84166.0,0.15366518]
[1741833976758,0.01974123,84167.0,84166.0,0.15366518]
[1741833977062,0.02074123,84167.0,84166.0,0.15366518]
[1741833978901,0.03262223,84167.0,84166.0,0.15366518]
[1741833979131,0.02074123,84167.0,84166.0,0.15366518]
[1741833979724,0.04300598,84167.0,84166.0,0.15366518]
[1741833980135,0.0541384,84167.0,84166.0,0.15366518]
[1741833985366,0.0531384,84167.0,84166.0,0.15366518]
[1741833985588,0.0541384,84167.0,84166.0,0.15366518]
[1741833986472,0.054308,84167.0,84166.0,0.15366518]
[1741833986812,0.03204325,84167.0,84166.0,0.15366518]
[1741833987255,0.02091083,84167.0,84166.0,0.15366518]
[1741833987573,0.02091083,84167.0,84166.0,0.01674518]
[1741833987767,0.02091083,84167.0,84166.0,0.15366518]
[1741833988283,0.01991083,84167.0,84166.0,0.27360737]
[1741833988483,0.0012944,84167.0,84166.0,0.41478837]
[1741833989530,0.0012944,84167.0,84166.0,0.45181702]
[1741833989731,0.01607091,84179.0,84178.0,0.24947]
[1741833989934,0.01607091,84179.0,84178.0,0.45021219]
[1741833990061,0.01607091,84179.0,84178.0,0.45606938]
[1741833991365,0.001,84190.0,84189.0,0.23756]
[1741833991564,0.001,84190.0,84189.0,0.386358]
[1741833992030,0.001,84190.0,84189.0,0.37448]
[1741833992235,0.01861,84191.0,84189.0,0.49442219]
[1741833992442,0.01607091,84196.0,84195.0,0.011877]
[1741833992644,0.01607091,84196.0,84195.0,0.36936219]
[1741833993604,0.01607091,84196.0,84195.0,0.3752011]
[1741833994005,0.01607091,84196.0,84195.0,0.5141211]
[1741833994220,0.01607091,84196.0,84195.0,0.52405076]
[1741833994582,0.01607091,84196.0,84195.0,0.51517376]
[1741833994795,0.01607091,84196.0,84195.0,0.52705076]
[1741833995208,0.01607091,84196.0,84195.0,0.53405076]
[1741833995798,0.01607091,84196.0,84195.0,0.55757678]
[1741833996467,0.01607091,84196.0,84195.0,0.55057678]
[1741833996669,0.01607091,84196.0,84195.0,0.55757678]
[1741833996947,0.01607091,84196.0,84195.0,0.55457678]
[1741833997251,0.00029442,84197.0,84196.0,0.011877]
[1741833997454,0.00029442,84197.0,84196.0,0.21550667]
[1741833997655,0.00029442,84197.0,84196.0,0.22134451]
[1741833998991,0.00029442,84197.0,84196.0,1.72134451]
[1741833999190,0.00029442,84197.0,84196.0,1.72015703]
[1741833999533,0.00029442,84197.0,84196.0,1.62978003]
[1741833999654,0.00029442,84197.0,84196.0,0.28553703]
[1741833999859,0.00029442,84197.0,84196.0,0.26966003]
[1741834000055,0.00129442,84197.0,84196.0,0.01783784]
[1741834000305,0.00129442,84197.0,84196.0,0.15471784]
[1741834000659,0.01317042,84197.0,84196.0,0.01783784]
[1741834000858,0.01317042,84197.0,84196.0,0.14888]
[1741834001264,0.01317042,84197.0,84196.0,0.15471784]
[1741834001482,0.00129442,84197.0,84196.0,0.15471784]
[1741834002050,0.00029442,84197.0,84196.0,0.16659484]
[1741834002322,0.00029442,84197.0,84196.0,0.15471784]
[1741834002524,0.00029442,84197.0,84196.0,0.01783784]
[1741834002825,0.00029442,84197.0,84196.0,0.15483784]
[1741834003504,0.00029442,84197.0,84196.0,0.28665703]
[1741834006733,0.00029442,84197.0,84196.0,0.27965703]
[1741834006930,0.00029442,84197.0,84196.0,0.28165703]
[1741834007158,0.0008,84229.0,84219.0,0.011873]
[1741834007358,0.0008,84229.0,84219.0,1.34221832]
[1741834007563,0.01860312,84228.0,84219.0,1.34684431]
[1741834007767,0.03147512,84228.0,84219.0,1.25427131]
[1741834008090,0.001,84225.0,84219.0,1.15853881]
[1741834008291,0.001,84225.0,84219.0,1.17041181]
[1741834008912,0.001,84225.0,84219.0,2.67741181]
[1741834009361,0.01860312,84228.0,84219.0,2.796354]
[1741834009767,0.01860312,84228.0,84219.0,2.803354]
[1741834010385,0.01860312,84228.0,84219.0,2.81227957]
[1741834010939,0.01860312,84228.0,84219.0,2.93787957]
[1741834011140,0.0008,84229.0,84228.0,0.011872]
[1741834011320,0.0001695,84234.0,84233.0,0.249307]
[1741834011703,0.00058606,84234.0,84233.0,0.51200726]
[1741834012058,0.00058606,84234.0,84233.0,2.01200726]
[1741834012870,0.00058606,84234.0,84233.0,2.01900726]
[1741834013091,0.00058606,84234.0,84233.0,2.02600726]
[1741834013535,0.00158606,84234.0,84233.0,0.15695807]
[1741834013739,0.00158606,84234.0,84233.0,0.00695807]
[1741834013893,0.00058606,84234.0,84233.0,0.01882907]
[1741834014096,0.00158606,84234.0,84233.0,0.0243636]
[1741834014302,0.00158606,84234.0,84233.0,0.0124926]
[1741834014773,0.00058606,84234.0,84233.0,0.2499286]
[1741834014947,0.00058606,84234.0,84233.0,0.2687996]
[1741834015119,0.00158606,84234.0,84233.0,0.0194926]
[1741834015485,0.00158606,84234.0,84233.0,0.2569286]
[1741834015687,0.00058606,84234.0,84233.0,0.2727996]
[1741834015951,0.00058606,84234.0,84233.0,0.52310372]
[1741834017183,0.01345706,84234.0,84233.0,0.15385453]
[1741834017370,0.00158606,84234.0,84233.0,0.15385453]
[1741834018671,0.01345706,84234.0,84233.0,0.15385453]
[1741834018848,0.00158606,84234.0,84233.0,0.15385453]
[1741834019053,0.00158606,84234.0,84233.0,0.14832]
[1741834019250,0.00158606,84234.0,84233.0,0.15385453]
[1741834019838,0.00158606,84234.0,84233.0,0.16572553]
[1741834020445,0.00158606,84234.0,84233.0,0.15385453]
[1741834021188,0.23901906,84234.0,84233.0,0.15385453]
[1741834021387,0.01345706,84234.0,84233.0,0.15385453]
[1741834021586,0.00158606,84234.0,84233.0,0.15385453]
[1741834022689,0.01345706,84234.0,84233.0,0.15385453]
[1741834022897,0.05865706,84234.0,84233.0,0.01653453]
[1741834023325,0.01345706,84234.0,84233.0,0.011]
[1741834023567,0.00158606,84234.0,84233.0,0.011]
[1741834023705,0.00158606,84234.0,84233.0,0.01649353]
[1741834025116,0.01345706,84234.0,84233.0,0.01649353]
[1741834025521,0.01345706,84234.0,84233.0,0.011]
[1741834026041,0.01345706,84234.0,84233.0,0.01649353]
[1741834026445,0.00158606,84234.0,84233.0,0.01649353]
[1741834027128,0.01345706,84234.0,84233.0,0.01649353]
[1741834028132,0.50555706,84234.0,84233.0,0.01649353]
[1741834028398,0.55455706,84234.0,84233.0,0.011]
[1741834028999,0.55455706,84234.0,84233.0,0.004]
[1741834029224,0.250346,84220.0,84219.0,0.75416]
[1741834029425,0.250346,84220.0,84196.0,0.000339]
[1741834029426,0.001,84199.0,84196.0,0.138059]
[1741834029757,0.4089,84205.0,84204.0,0.249393]
[1741834030392,0.249393,84204.0,84203.0,0.13776]
[1741834030547,0.4089,84205.0,84204.0,0.237518]
[1741834030747,0.4089,84205.0,84204.0,0.249393]
[1741834031149,0.4089,84205.0,84204.0,0.237518]
[1741834031389,0.4099,84205.0,84204.0,0.237518]
[1741834031572,0.4099,84205.0,84201.0,0.13796]
[1741834031780,0.4109,84205.0,84204.0,0.007]
[1741834032022,0.4109,84205.0,84204.0,0.012]
[1741834032155,0.4109,84205.0,84204.0,0.02005658]
[1741834032363,0.4099,84205.0,84204.0,0.00805658]
[1741834032713,0.4099,84205.0,84204.0,0.01105658]
[1741834033261,0.421775,84205.0,84204.0,0.01105658]
[1741834033450,0.501475,84205.0,84204.0,0.00805658]
[1741834033651,0.001,84198.0,84197.0,1.5]
[1741834034051,0.001,84198.0,84197.0,1.5080684]
[1741834034503,0.012876,84198.0,84197.0,0.0080684]
[1741834035310,0.250414,84197.0,84196.0,0.00909516]
[1741834035718,0.250414,84197.0,84196.0,0.01645679]
[1741834035889,0.26151527,84197.0,84196.0,0.01645679]
[1741834036396,0.2837179,84197.0,84196.0,0.01645679]
[1741834036590,0.2837179,84197.0,84196.0,0.00970063]
[1741834037545,0.30232746,84197.0,84196.0,0.00970063]
[1741834038155,0.30332746,84197.0,84196.0,0.01670063]
[1741834039271,0.71222746,84197.0,84196.0,0.01670063]
[1741834039667,0.79192746,84197.0,84196.0,0.01670063]
[1741834040398,0.79192746,84197.0,84196.0,0.009339]
[1741834047288,0.46281346,84197.0,84196.0,0.009339]
[1741834047487,0.4442039,84197.0,84196.0,0.009339]
[1741834047690,0.4560799,84197.0,84196.0,0.009339]
[1741834047905,0.4560799,84197.0,84196.0,0.01670063]
[1741834048109,0.4432039,84197.0,84196.0,0.258756]
[1741834048301,0.43310263,84197.0,84196.0,0.258756]
[1741834048515,0.4099,84197.0,84196.0,0.26611763]
[1741834049082,0.001,84197.0,84196.0,0.45473746]
[1741834049627,0.001,84197.0,84196.0,1.95473746]
[1741834050127,0.001,84197.0,84196.0,1.95273746]
[1741834050326,0.001,84197.0,84196.0,1.95373746]
[1741834050843,0.001,84206.0,84205.0,0.237515]
[1741834051177,0.001,84206.0,84205.0,0.00734833]
[1741834051378,0.011875,84204.0,84201.0,0.138]
[1741834051605,0.001,84205.0,84203.0,0.011876]
[1741834051803,0.001,84205.0,84204.0,0.249393]
[1741834052582,0.001,84205.0,84204.0,0.237518]
[1741834052903,0.001,84205.0,84203.0,0.13816]
[1741834053105,0.249393,84204.0,84203.0,0.13816]
[1741834053308,0.250393,84204.0,84203.0,0.13816]
[1741834053515,0.001,84204.0,84203.0,0.13816]
[1741834054294,0.001,84204.0,84201.0,0.006]
[1741834054700,0.001,84204.0,84202.0,0.00735276]
[1741834055032,0.001,84204.0,84203.0,0.237521]
[1741834055425,0.001,84204.0,84203.0,0.24687228]
[1741834055974,0.01860692,84206.0,84205.0,0.011875]
[1741834056328,0.01860692,84206.0,84205.0,0.01922333]
[1741834056528,0.01860692,84206.0,84205.0,0.15746333]
[1741834056732,0.01960692,84206.0,84205.0,0.38310333]
[1741834059158,0.01960692,84206.0,84205.0,0.38810333]
[1741834059546,0.01960692,84206.0,84205.0,0.38910333]
[1741834060808,0.01860692,84206.0,84205.0,0.40097833]
[1741834061509,0.01860692,84206.0,84205.0,0.52092052]
[1741834061758,0.001,84218.0,84209.0,0.249379]
[1741834061968,0.001,84220.0,84209.0,0.25672142]
[1741834062196,0.001,84219.0,84209.0,1.89468142]
[1741834062429,0.001,84218.0,84209.0,2.01462361]
[1741834062906,0.001,84218.0,84209.0,0.51462361]
[1741834063375,0.001,84218.0,84209.0,0.51562361]
[1741834063816,0.001,84218.0,84209.0,0.51462361]
[1741834064025,0.001,84218.0,84209.0,0.51962361]
[1741834064442,0.001,84218.0,84209.0,0.54368744]
[1741834064867,0.01860583,84217.0,84209.0,0.55068744]
[1741834065764,0.01860583,84217.0,84216.0,0.237484]
[1741834066155,0.01860583,84217.0,84216.0,0.24481607]
[1741834066990,0.01860583,84217.0,84216.0,0.25669007]
[1741834067189,0.01860583,84217.0,84216.0,0.25869007]
[1741834067597,0.01860583,84217.0,84216.0,0.24681607]
[1741834067923,0.01860583,84217.0,84216.0,0.00933207]
[1741834068338,0.01860583,84217.0,84216.0,0.01633207]
[1741834071100,0.01860583,84217.0,84216.0,0.02820607]
[1741834072193,0.01860583,84217.0,84216.0,0.01633207]
[1741834072448,0.01960583,84217.0,84216.0,0.01633207]
[1741834080174,0.25708683,84217.0,84216.0,0.01633207]
[1741834080329,0.01960583,84217.0,84216.0,0.01633207]
[1741834080536,0.03147983,84217.0,84216.0,0.009]
[1741834081117,0.04261258,84217.0,84216.0,0.009]
[1741834081349,0.04261258,84217.0,84216.0,0.009339]
[1741834081555,0.12351258,84217.0,84216.0,0.009339]
[1741834081754,0.10490675,84217.0,84216.0,0.009339]
[1741834082431,0.093774,84217.0,84216.0,0.009339]
[1741834082632,0.093774,84217.0,84216.0,0.01667107]
[1741834083177,0.502674,84217.0,84216.0,0.01667107]
[1741834083584,0.502674,84217.0,84216.0,0.009339]
[1741834085255,0.502674,84217.0,84216.0,0.007339]
[1741834085814,0.502674,84217.0,84216.0,0.000339]
[1741834086212,0.502674,84217.0,84216.0,0.005339]
[1741834086418,0.56698081,84217.0,84216.0,0.005339]
[1741834086619,0.56698081,84217.0,84216.0,0.000339]
[1741834087191,0.59104225,84217.0,84216.0,0.000339]
[1741834087525,0.72860225,84217.0,84216.0,0.004339]
[1741834087728,0.72860225,84217.0,84196.0,0.000339]
[1741834087729,0.250387,84206.0,84196.0,0.000339]
[1741834087938,0.373487,84206.0,84196.0,0.000339]
[1741834088584,0.39209856,84206.0,84196.0,0.000339]
[1741834090069,0.39209856,84206.0,84205.0,0.002339]
[1741834090592,0.39409856,84206.0,84205.0,0.002339]
[1741834091398,0.41632536,84206.0,84205.0,0.002339]
[1741834091852,0.82522536,84206.0,84205.0,0.002339]
[1741834092065,0.82522536,84206.0,84205.0,1e-06]
[1741834092066,0.85022536,84206.0,84205.0,1e-06]
[1741834092585,0.8316138,84206.0,84205.0,1e-06]
[1741834093006,0.2504,84202.0,84196.0,0.000339]
[1741834093208,0.51204,84202.0,84196.0,0.000339]
[1741834093853,0.53704,84202.0,84196.0,0.000339]
[1741834094265,0.54104,84202.0,84196.0,0.000339]
[1741834094602,0.54704,84202.0,84201.0,0.001339]
[1741834094798,0.54704,84202.0,84201.0,0.000339]
[1741834095002,0.5692668,84202.0,84201.0,0.000339]
[1741834095202,0.58737098,84202.0,84201.0,0.001339]
[1741834095399,0.58137098,84202.0,84201.0,0.000339]
[1741834095607,0.59998492,84202.0,84201.0,0.000339]
[1741834095825,0.59598492,84202.0,84201.0,0.000339]
[1741834096014,0.60298492,84202.0,84201.0,0.000339]
[1741834096675,0.59598492,84202.0,84201.0,0.000339]
[1741834096925,0.298314,84197.0,84196.0,0.000339]
[1741834097133,0.298314,84197.0,84155.0,0.13788]
[1741834097134,0.250499,84168.0,84155.0,0.13788]
[1741834097347,0.741699,84168.0,84167.0,0.00046412]
[1741834097736,0.77053603,84168.0,84167.0,0.00046412]
[1741834097988,0.78915439,84168.0,84167.0,0.00046412]
[1741834098193,0.83705439,84168.0,84167.0,0.00046412]
[1741834098402,0.89474892,84168.0,84167.0,0.00046412]
[1741834098807,0.89874892,84168.0,84167.0,0.00046412]
[1741834098986,0.89474892,84168.0,84167.0,0.00046412]
[1741834099429,0.90174892,84168.0,84167.0,0.00046412]
[1741834100679,0.90574892,84168.0,84167.0,0.00046412]
[1741834102077,0.89474892,84168.0,84167.0,0.00046412]
[1741834102287,0.61722992,84168.0,84167.0,0.00046412]
[1741834102426,0.61222992,84168.0,84167.0,0.00046412]
[1741834102831,0.61622992,84168.0,84167.0,0.00046412]
[1741834103174,0.61322992,84168.0,84167.0,0.00046412]
[1741834103538,0.59549707,84168.0,84167.0,0.00046412]
[1741834104913,0.64399707,84168.0,84167.0,0.00046412]
[1741834105349,0.62537871,84168.0,84167.0,0.00046412]
[1741834105759,0.62137871,84168.0,84167.0,0.00046412]
[1741834106330,0.62337871,84168.0,84167.0,0.00046412]
[1741834106543,0.62137871,84168.0,84167.0,0.00046412]
[1741834106977,0.328615,84163.0,84162.0,0.0003392]
[1741834108367,0.34723637,84163.0,84162.0,0.0003392]
[1741834108571,0.4049309,84163.0,84162.0,0.0003392]
[1741834108748,0.4059309,84163.0,84162.0,0.0003392]
[1741834108887,0.43472384,84163.0,84162.0,0.0003392]
[1741834109537,0.84362384,84163.0,84162.0,0.0003392]
[1741834111106,0.89282384,84163.0,84162.0,0.0003392]
[1741834111544,0.87420247,84163.0,84162.0,0.0003392]
[1741834111950,0.85551371,84163.0,84162.0,0.0003392]
[1741834112175,0.86151371,84163.0,84162.0,0.0003392]
[1741834112604,0.85551371,84163.0,84162.0,0.0003392]
[1741834112808,0.85951371,84163.0,84162.0,0.0003392]
[1741834113013,0.86151371,84163.0,84162.0,0.0003392]
[1741834115944,0.88013603,84163.0,84162.0,0.0003392]
[1741834116427,0.88013603,84163.0,84158.0,4e-07]
[1741834116669,0.333327,84159.0,84158.0,0.0001252]
[1741834116903,0.333327,84159.0,84158.0,2e-07]
[1741834117317,0.39102153,84159.0,84158.0,2e-07]
[1741834117517,0.39102153,84159.0,84150.0,0.0003392]
[1741834117518,0.249551,84151.0,84150.0,0.0003392]
[1741834117719,0.658451,84151.0,84150.0,0.0003392]
[1741834118358,0.67707496,84151.0,84150.0,0.0003392]
[1741834118851,0.76087496,84151.0,84150.0,0.0003392]
[1741834119126,0.81856949,84151.0,84150.0,0.0003392]
[1741834119986,0.82967367,84151.0,84150.0,0.0003392]
[1741834120566,0.8417103,84151.0,84150.0,0.0003392]
[1741834121028,0.49732267,84151.0,84150.0,0.0003392]
[1741834121430,0.49932267,84151.0,84150.0,0.00776887]
[1741834121560,0.51709324,84151.0,84150.0,0.00776887]
[1741834121907,0.52897624,84151.0,84150.0,0.0003392]
[1741834122207,0.52697624,84151.0,84150.0,0.0003392]
[1741834123152,0.49150851,84151.0,84150.0,0.0003392]
[1741834123592,0.47473794,84151.0,84150.0,0.00776887]
[1741834123813,0.47473794,84151.0,84150.0,0.0003392]
[1741834124155,0.45251114,84151.0,84150.0,0.0003392]
[1741834124822,0.44062814,84151.0,84150.0,0.0003392]
[1741834125280,0.45251114,84151.0,84150.0,0.00776887]
[1741834128356,0.44062814,84151.0,84150.0,0.00776887]
[1741834128974,0.45251114,84151.0,84150.0,0.00776887]
[1741834129228,0.45251114,84151.0,84150.0,0.0003392]
[1741834129961,0.45251114,84151.0,84150.0,0.00776887]
[1741834130391,0.45251114,84151.0,84150.0,0.0003392]
[1741834130598,0.45251114,84151.0,84150.0,0.00776887]
[1741834131029,0.45251114,84151.0,84150.0,0.0003392]
[1741834131686,0.44062814,84151.0,84150.0,0.0122222]
[1741834131902,0.44062814,84151.0,84150.0,0.0003392]
[1741834133410,0.44062814,84151.0,84150.0,0.24543887]
[1741834133642,0.43962814,84151.0,84150.0,0.24543887]
[1741834133842,0.4109,84151.0,84150.0,0.25732187]
[1741834135397,0.001,84151.0,84150.0,0.46263902]
[1741834135615,0.001,84151.0,84150.0,0.50953902]
[1741834136022,0.001,84151.0,84150.0,2.00953902]
[1741834137242,0.001,84151.0,84150.0,1.87771383]
[1741834137445,0.001,84151.0,84150.0,1.88959683]
[1741834137677,0.001,84151.0,84150.0,2.02687683]
[1741834138457,0.01961903,84151.0,84150.0,2.02687683]
[1741834139145,0.01961903,84151.0,84150.0,0.52687683]
[1741834139669,0.01961903,84151.0,84150.0,2.02687683]
[1741834140013,0.01961903,84151.0,84150.0,1.77732383]
[1741834140223,0.03250203,84151.0,84150.0,0.15402383]
[1741834140434,0.03250203,84151.0,84150.0,0.01674383]
[1741834140844,0.02061903,84151.0,84150.0,0.01674383]
[1741834142806,0.03250203,84151.0,84150.0,0.01674383]
[1741834143237,0.03250203,84151.0,84150.0,0.00931416]
[1741834143642,0.03250203,84151.0,84150.0,0.01674383]
[1741834144047,0.03250203,84151.0,84150.0,0.00931416]
[1741834144530,0.03250203,84151.0,84150.0,0.01674383]
[1741834144863,0.44140203,84151.0,84150.0,0.01674383]
[1741834145066,0.44140203,84151.0,84150.0,0.00776887]
[1741834145258,0.44140203,84151.0,84150.0,0.0003392]
[1741834146086,0.49090203,84151.0,84150.0,0.0003392]
[1741834146290,0.472283,84151.0,84150.0,0.0003392]
[1741834146705,0.471283,84151.0,84150.0,0.0003392]
[1741834147317,0.472283,84151.0,84150.0,0.0003392]
[1741834147535,0.471283,84151.0,84150.0,0.0003392]
[1741834147921,0.473283,84151.0,84150.0,0.0003392]
[1741834149259,0.491906,84151.0,84150.0,0.0003392]
[1741834152525,0.567906,84151.0,84150.0,0.0003392]
[1741834159643,0.57902642,84151.0,84150.0,0.0003392]
[1741834160589,0.57702642,84151.0,84150.0,0.0003392]
[1741834161068,0.58002642,84151.0,84150.0,0.0003392]
[1741834162359,0.57902642,84151.0,84150.0,0.0003392]
[1741834164766,0.44164342,84151.0,84150.0,0.0003392]
[1741834164970,0.43490342,84151.0,84150.0,0.0003392]
[1741834165698,0.42202042,84151.0,84150.0,0.0003392]
[1741834165904,0.67257142,84151.0,84150.0,0.0003392]
[1741834167233,0.42302042,84151.0,84150.0,0.0003392]
[1741834167434,0.43490342,84151.0,84150.0,0.0003392]
[1741834167637,0.43490342,84151.0,84150.0,0.01151463]
[1741834167773,0.42202042,84151.0,84150.0,0.0003392]
[1741834167978,0.44164236,84151.0,84150.0,0.0122222]
[1741834168182,0.44164236,84151.0,84150.0,0.0003392]
[1741834168868,0.44164236,84151.0,84150.0,0.01151463]
[1741834169187,0.43052194,84151.0,84150.0,0.01151463]
[1741834169631,0.43052194,84151.0,84150.0,0.0003392]
[1741834170953,0.43052194,84151.0,84150.0,0.02339763]
[1741834171160,0.43052194,84151.0,84150.0,0.0003392]
[1741834171378,0.43052194,84151.0,84150.0,0.15239763]
[1741834171575,0.43052194,84151.0,84150.0,0.1412222]
[1741834171807,0.43052194,84151.0,84150.0,0.15239763]
[1741834172514,0.43052194,84151.0,84150.0,0.14051463]
[1741834172750,0.43052194,84151.0,84150.0,0.05821463]
[1741834172934,0.44240494,84151.0,84150.0,0.01151463]
[1741834173171,0.68007294,84151.0,84150.0,0.01151463]